[Event "Chess24 Legends of Chess"]
[White "Kramnik, Vladimir"]
[Black "Ding, Liren"]
[Site "Online"]
[Round "5.3"]
[Annotator "RC"]
[Result "1/2-1/2"]
[Date "2020.07.18"]
[WhiteElo "2756"]
[BlackElo "2836"]
[PlyCount "203"]
[TimeControl "900+10"]

1. e4 {[%emt 0:0:0]} c5 {[%emt 0:0:0]} 2. Nf3 {[%emt 0:0:0]} d6 {[%emt 0:0:0]} 3. d4 {[%emt 0:0:0]} cxd4 {[%emt 0:0:0]} 4. Nxd4 {[%emt 0:0:0]} Nf6 {[%emt 0:0:0]} 5. Nc3 {[%emt 0:0:0]} a6 {[%emt 0:0:0]} 6. Bc4 {[%emt 0:0:2]
} e6 {[%emt 0:0:6]} 7. Bb3 {[%emt 0:0:1]} Nbd7 {[%emt 0:0:0]} 8. Be3 {[%emt 0:0:2]} Nc5 {[%emt 0:0:5]} 9. f3 {[%emt 0:0:2]} b5 {[%emt 0:0:22]
} 10. Qd2 {[%emt 0:0:18]} Qc7 {[%emt 0:1:3]} 11. 0-0-0 {[%emt 0:1:8]
} Be7 {[%emt 0:2:28]} 12. g4 {[%emt 0:0:19]} b4 {[%emt 0:1:20]
} 13. Na4 {[%emt 0:1:8]} 0-0 {[%emt 0:0:11]} 14. Qxb4 {[%emt 0:1:35]} Nxa4 {[%emt 0:0:55]} 15. Qxa4 {[%emt 0:0:12]} Bd7 {[%emt 0:0:7]} 16. Qc4 {[%emt 0:0:26]
} Qb7 {[%emt 0:0:9]} 17. g5 {[%emt 0:0:28]} Nh5 {[%emt 0:0:0]} 18. Ba4 {[%emt 0:1:43]} Bxa4 {[%emt 0:1:28]} 19. Qxa4 {[%emt 0:0:3]} Rab8 {[%emt 0:0:1]} 20. Nc6 {[%emt 0:0:40]} Qxb2+ {[%emt 0:1:45]} 21. Kd2 {[%emt 0:0:6]
} Rfe8 {[%emt 0:0:0]} 22. Nxb8 {[%emt 0:2:2]} Qxb8 {[%emt 0:0:0]} 23. Rb1 {[%emt 0:0:24]} Qd8 {[%emt 0:0:2]} 24. Rhg1 {[%emt 0:1:2]} d5 {[%emt 0:0:2]} 25. Kc1 {[%emt 0:0:27]} g6 {[%emt 0:0:13]} 26. Rb7 {[%emt 0:0:17]
} Ng7 {[%emt 0:0:9]} 27. Kb1 {[%emt 0:1:16]} Qc8 {[%emt 0:0:0]} 28. Qxa6 {[%emt 0:1:12]} e5 {[%emt 0:1:53]} 29. Qa7 {[%emt 0:0:32]} Bf8 {[%emt 0:0:34]} 30. Rxf7 {[%emt 0:0:52]} d4 {[%emt 0:0:2]} 31. Bc1 {[%emt 0:0:51]
} Ne6 {[%emt 0:0:1]} 32. Qb7 {[%emt 0:0:36]} Qc4 {[%emt 0:0:0]} 33. Rxh7 {[%emt 0:1:10]} Nc5 {[%emt 0:0:18]} 34. Rc7 {[%emt 0:0:7]} d3 {[%emt 0:0:53]} 35. Qd5+ {[%emt 0:0:41]} Qxd5 {[%emt 0:0:4]} 36. exd5 {[%emt 0:0:1]
} Rb8+ {[%emt 0:0:1]} 37. Ka1 {[%emt 0:0:4]} e4 {[%emt 0:0:0]} 38. Be3 {[%emt 0:0:30]} Na6 {[%emt 0:0:59]} 39. Rc4 {[%emt 0:0:24]} Nb4 {[%emt 0:0:21]} 40. cxd3 {[%emt 0:0:27]} exd3 {[%emt 0:0:4]} 41. Bd4 {[%emt 0:0:18]
} Nc2+ {[%emt 0:1:41]} 42. Rxc2 {[%emt 0:0:2]} dxc2 {[%emt 0:0:0]} 43. Rc1 {[%emt 0:0:16]} Rb5 {[%emt 0:0:11]} 44. Rxc2 {[%emt 0:0:10]} Rxd5 {[%emt 0:0:1]} 45. Bf6 {[%emt 0:0:17]} Ba3 {[%emt 0:0:3]} 46. Rc8+ {[%emt 0:0:1]
} Kf7 {[%emt 0:0:1]} 47. Kb1 {[%emt 0:0:1]} Rd1+ {[%emt 0:0:0]} 48. Kc2 {[%emt 0:0:3]} Rc1+ {[%emt 0:0:1]} 49. Kb3 {[%emt 0:0:1]} Rxc8 {[%emt 0:0:1]} 50. Kxa3 {[%emt 0:0:1]} Ke6 {[%emt 0:0:28]} 51. f4 {[%emt 0:0:9]
} Ra8+ {[%emt 0:0:47]} 52. Kb2 {[%emt 0:0:3]} Rb8+ {[%emt 0:0:0]} 53. Kc3 {[%emt 0:0:5]} Ra8 {[%emt 0:0:1]} 54. Kb3 {[%emt 0:0:4]} Rb8+ {[%emt 0:0:1]} 55. Kc3 {[%emt 0:0:2]} Ra8 {[%emt 0:0:1]} 56. Kb2 {[%emt 0:0:2]
} Rb8+ {[%emt 0:0:2]} 57. Ka1 {[%emt 0:0:1]} Rb7 {[%emt 0:0:0]} 58. Be5 {[%emt 0:0:2]} Rh7 {[%emt 0:0:5]} 59. Kb2 {[%emt 0:0:1]} Rxh2+ {[%emt 0:0:8]} 60. Kb3 {[%emt 0:0:1]} Kd5 {[%emt 0:0:6]} 61. a4 {[%emt 0:0:14]
} Kc5 {[%emt 0:0:7]} 62. a5 {[%emt 0:0:17]} Kb5 {[%emt 0:0:0]} 63. Kc3 {[%emt 0:0:18]} Ra2 {[%emt 0:0:33]} 64. Bc7 {[%emt 0:0:46]} Ra4 {[%emt 0:0:8]} 65. Kd3 {[%emt 0:0:42]} Kc6 {[%emt 0:0:7]} 66. Be5 {[%emt 0:0:9]
} Kd5 {[%emt 0:0:18]} 67. Bc7 {[%emt 0:0:15]} Kc6 {[%emt 0:0:0]} 68. Be5 {[%emt 0:0:6]} Rxa5 {[%emt 0:0:2]} 69. Ke4 {[%emt 0:0:3]} Ra4+ {[%emt 0:0:1]} 70. Kf3 {[%emt 0:0:35]} Kd5 {[%emt 0:0:2]} 71. Bc7 {[%emt 0:0:12]
} Ra3+ {[%emt 0:0:17]} 72. Kg4 {[%emt 0:0:14]} Ke4 {[%emt 0:0:0]} 73. Bd6 {[%emt 0:0:5]} Rf3 {[%emt 0:0:11]} 74. Bc7 {[%emt 0:0:8]} Rf1 {[%emt 0:0:16]} 75. Kg3 {[%emt 0:0:2]} Rg1+ {[%emt 0:0:21]} 76. Kf2 {[%emt 0:0:6]
} Rc1 {[%emt 0:0:8]} 77. Be5 {[%emt 0:0:4]} Rb1 {[%emt 0:0:0]} 78. Ke2 {[%emt 0:0:14]} Rb3 {[%emt 0:0:6]} 79. Kf2 {[%emt 0:0:3]} Rf3+ {[%emt 0:0:3]} 80. Ke2 {[%emt 0:0:11]} Rh3 {[%emt 0:0:53]} 81. Kf2 {[%emt 0:0:3]
} Rh2+ {[%emt 0:0:3]} 82. Kg3 {[%emt 0:0:5]} Re2 {[%emt 0:0:0]} 83. Bc7 {[%emt 0:0:5]} Re3+ {[%emt 0:0:8]} 84. Kf2 {[%emt 0:0:15]} Rf3+ {[%emt 0:0:8]} 85. Kg2 {[%emt 0:0:9]} Ke3 {[%emt 0:0:14]} 86. Be5 {[%emt 0:0:16]
} Ke2 {[%emt 0:0:8]} 87. Bd6 {[%emt 0:0:4]} Rf2+ {[%emt 0:0:0]} 88. Kg3 {[%emt 0:0:2]} Rf1 {[%emt 0:0:1]} 89. Kg2 {[%emt 0:0:13]} Rf2+ {[%emt 0:0:10]} 90. Kg3 {[%emt 0:0:2]} Kf1 {[%emt 0:0:6]} 91. Be5 {[%emt 0:0:16]
} Rg2+ {[%emt 0:0:52]} 92. Kf3 {[%emt 0:0:3]} Re2 {[%emt 0:0:0]} 93. Bd4 {[%emt 0:0:14]} Rd2 {[%emt 0:0:5]} 94. Ke3 {[%emt 0:0:16]} Re2+ {[%emt 0:0:3]} 95. Kf3 {[%emt 0:0:5]} Ra2 {[%emt 0:0:14]} 96. f5 {[%emt 0:0:26]
} gxf5 {[%emt 0:0:2]} 97. Kf4 {[%emt 0:0:12]} Ra4 {[%emt 0:0:0]} 98. Kxf5 {[%emt 0:0:4]} Rxd4 {[%emt 0:0:2]} 99. g6 {[%emt 0:0:1]} Rd8 {[%emt 0:0:6]} 100. g7 {[%emt 0:0:2]} Rg8 {[%emt 0:0:0]} 101. Kg6 {[%emt 0:0:1]
} Rxg7+ {[%emt 0:0:2]} 102. Kxg7 {[%emt 0:0:1]} 1/2-1/2

[Event "Chess24 Legends of Chess"]
[White "Ding, Liren"]
[Black "Kramnik, Vladimir"]
[Site "Online"]
[Round "5.4"]
[Annotator "RC"]
[Result "0-1"]
[Date "2020.07.18"]
[WhiteElo "2836"]
[BlackElo "2756"]
[PlyCount "126"]
[TimeControl "900+10"]

1. d4 {[%emt 0:0:0]} Nf6 {[%emt 0:0:0]} 2. c4 {[%emt 0:0:0]} e6 {[%emt 0:0:0]} 3. Nf3 {[%emt 0:0:0]} d5 {[%emt 0:0:0]} 4. Nc3 {[%emt 0:0:0]} Nbd7 {[%emt 0:0:0]} 5. cxd5 {[%emt 0:0:1]} exd5 {[%emt 0:0:0]} 6. Bg5 {[%emt 0:0:1]
} c6 {[%emt 0:0:0]} 7. e3 {[%emt 0:0:1]} h6 {[%emt 0:0:2]} 8. Bh4 {[%emt 0:0:2]} Be7 {[%emt 0:0:17]} 9. Qc2 {[%emt 0:0:3]} 0-0 {[%emt 0:0:6]
} 10. Bd3 {[%emt 0:0:1]} Re8 {[%emt 0:0:1]} 11. Nd2 {[%emt 0:0:0]} Nf8 {[%emt 0:0:37]} 12. 0-0 {[%emt 0:0:8]} Nh5 {[%emt 0:0:59]} 13. Bxe7 {[%emt 0:0:3]} Qxe7 {[%emt 0:0:1]} 14. Rae1 {[%emt 0:0:7]} Ne6 {[%emt 0:0:40]
} 15. f4 {[%emt 0:3:54]} Nf6 {[%emt 0:0:3]} 16. Nf3 {[%emt 0:0:0]} c5 {[%emt 0:0:24]} 17. Qf2 {[%emt 0:0:46]} Bd7 {[%emt 0:1:2]} 18. Ne5 {[%emt 0:0:3]} Bc6 {[%emt 0:0:45]} 19. Bf5 {[%emt 0:1:6]} Rad8 {[%emt 0:2:38]
} 20. g4 {[%emt 0:1:38]} Ne4 {[%emt 0:1:46]} 21. Nxe4 {[%emt 0:0:0]} dxe4 {[%emt 0:0:1]} 22. Nxc6 {[%emt 0:0:1]} bxc6 {[%emt 0:0:1]} 23. Bxe4 {[%emt 0:0:0]} Qd6 {[%emt 0:1:44]} 24. f5 {[%emt 0:1:8]} Ng5 {[%emt 0:0:10]
} 25. Bg2 {[%emt 0:0:3]} Rb8 {[%emt 0:3:7]} 26. Qf4 {[%emt 0:0:0]} Qe7 {[%emt 0:0:38]} 27. b3 {[%emt 0:1:15]} cxd4 {[%emt 0:0:12]} 28. f6 {[%emt 0:0:56]} Qb4 {[%emt 0:1:22]} 29. fxg7 {[%emt 0:0:40]} dxe3 {[%emt 0:0:17]
} 30. h4 {[%emt 0:1:7]} e2 {[%emt 0:0:32]} 31. Qxb4 {[%emt 0:0:0]} Rxb4 {[%emt 0:0:13]} 32. Rf2 {[%emt 0:3:3]} Ne6 {[%emt 0:0:2]} 33. Rexe2 {[%emt 0:1:23]} Rxg4 {[%emt 0:0:8]} 34. Kh2 {[%emt 0:0:2]} Rxh4+ {[%emt 0:0:36]
} 35. Kg3 {[%emt 0:0:1]} Rh5 {[%emt 0:0:1]} 36. Bxc6 {[%emt 0:0:3]
} Rc8 {[%emt 0:0:23]} 37. Bd7 {[%emt 0:0:14]} Rc3+ {[%emt 0:0:0]} 38. Kg2 {[%emt 0:0:10]} Rg5+ {[%emt 0:0:17]} 39. Kf1 {[%emt 0:0:8]} Nd4 {[%emt 0:0:24]} 40. Re4 {[%emt 0:0:3]} Nf3 {[%emt 0:1:24]} 41. Bg4 {[%emt 0:0:30]
} Ne5 {[%emt 0:0:6]} 42. Bf5 {[%emt 0:0:4]} Rc1+ {[%emt 0:0:0]} 43. Re1 {[%emt 0:0:2]} Rxe1+ {[%emt 0:0:15]} 44. Kxe1 {[%emt 0:0:0]} Kxg7 {[%emt 0:0:2]} 45. b4 {[%emt 0:0:6]} h5 {[%emt 0:0:3]} 46. b5 {[%emt 0:0:4]
} Rg3 {[%emt 0:0:8]} 47. a4 {[%emt 0:0:2]} Nf3+ {[%emt 0:0:0]} 48. Kf1 {[%emt 0:0:23]} Rg1+ {[%emt 0:0:15]} 49. Ke2 {[%emt 0:0:2]} Nd4+ {[%emt 0:0:7]} 50. Ke3 {[%emt 0:0:2]} Nb3 {[%emt 0:0:24]} 51. Bc2 {[%emt 0:0:42]
} Na5 {[%emt 0:0:1]} 52. Rf5 {[%emt 0:0:22]} Rg3+ {[%emt 0:0:0]} 53. Kd4 {[%emt 0:0:13]} h4 {[%emt 0:0:5]} 54. Rh5 {[%emt 0:0:1]} Rg4+ {[%emt 0:0:8]} 55. Kd5 {[%emt 0:0:28]} Rc4 {[%emt 0:0:15]} 56. Be4 {[%emt 0:0:12]
} Rxa4 {[%emt 0:0:4]} 57. Rxh4 {[%emt 0:0:2]} f5 {[%emt 0:0:0]} 58. Rf4 {[%emt 0:0:42]} fxe4 {[%emt 0:0:4]} 59. Rxe4 {[%emt 0:0:1]} Rxe4 {[%emt 0:0:7]} 60. Kxe4 {[%emt 0:0:0]} Kf6 {[%emt 0:0:3]} 61. Kd5 {[%emt 0:0:1]
} Ke7 {[%emt 0:0:3]} 62. Kc5 {[%emt 0:0:2]} Kd7 {[%emt 0:0:0]} 63. b6 {[%emt 0:0:7]} a6 {[%emt 0:0:10]} 0-1